Cogmind - Beta 16 @@@ ROGUE MODE // 2026.01.29 @ 15:25:10 Player: Tibo Result: Destroyed by S-27 Virus with Autogun Performance ------------- Evolutions (6) 3000 Regions Visited (11) 2200 Robots Destroyed (116) 580 Value Destroyed (2750) 2750 Prototype IDs (5) 100 Alien Tech Used (0) 0 Bonus (436) 436 TOTAL SCORE: 9066 Bonus ------- High Alert Combat Kills 36 Follower Combat Kills 400 Cogmind --------- Core Integrity 0/1150 Matter 300/300 Energy 100/100 System Corruption 6% Temperature Cool (0) Movement Core (50) Location -4/Extension Parts ------- > --- POWER (2) -------- (None) > --- PROPULSION (5) --- (None) > --- UTILITY (9) ------ Targeting Computer Graphene Brace Hacking Suite > --- WEAPON (3) ------- (None) > --- INVENTORY (5) ---- Neutrino Core Advanced Hacking Suite Welding Torch Peak State ------------ > --- POWER ------------ Antimatter Reactor Antimatter Reactor > --- PROPULSION ------- Flexi-carbon Leg Flexi-carbon Leg Flexi-carbon Leg Flexi-carbon Leg Myomer Leg > --- UTILITY ---------- Advanced Power Amplifier Advanced Heat Sink Advanced Weight Redist. System Advanced Sensor Array IFF Parser Targeting Computer Advanced Transmission Jammer Graphene Brace Hacking Suite > --- WEAPON ----------- Wave Gun Heavy Beamcaster KE Penetrator > --- INVENTORY -------- Neutrino Core Flexi-carbon Leg Advanced Hacking Suite Field Laser Welding Torch [Rating: 104] Favorites ----------- Power Light Ion Engine Engine Light Ion Engine Power Core Light Nuclear Core Reactor Antimatter Reactor Propulsion Improved VTOL Module Treads Light Treads Leg Carbon-fiber Leg Wheel Compact Wheel Hover Unit Hover Unit Flight Unit Improved VTOL Module Utility Large Storage Unit Device Reaction Control System Storage Large Storage Unit Processor Advanced Targeting Computer Hackware Hacking Suite Protection Light Armor Plating Weapon Advanced Datajack Energy Gun Improved Medium Laser Energy Cannon Beam Cannon Ballistic Gun Light Assault Rifle Ballistic Cannon Improved Light Cannon Launcher Grenade Launcher Special Weapon Mining Laser Impact Weapon Flail Slashing Weapon Axe Special Melee Weapon Advanced Datajack Build | -11 -10 -9 -9 -8 -7 -6 -5 -5 -5 -4 -4 ------- Run | Yrd Mat Mat Sto Mat Fac Fac Fac Upp Upp Fac Ext Slots Evolved 12 | . . 2 . 2 2 2 2 . . 2 . Power 1 | . . . . . . . 1 . . . . Propulsion 3 | . . 1 . . 1 . 1 . . . . Utility 7 | . . 1 . 1 1 2 . . . 2 . Weapon 1 | . . . . 1 . . . . . . . Parts Attached 125 | 7 4 16 12 29 6 8 3 1 . 9 30 Power 18 | 1 . 2 3 4 1 . 1 . . 1 5 Engine 9 | 1 . 2 2 3 . . 1 . . . . Core 6 | . . . 1 1 1 . . . . 1 2 Reactor 3 | . . . . . . . . . . . 3 Propulsion 36 | 2 . 5 4 10 1 3 1 . . 1 9 Treads 10 | . . 2 4 1 . . . . . . 3 Leg 9 | . . . . 3 . . . . . . 6 Wheel 5 | 2 . 3 . . . . . . . . . Hover 2 | . . . . 2 . . . . . . . Flight 10 | . . . . 4 1 3 1 . . 1 . Utility 36 | 2 1 1 2 7 2 5 1 1 . 4 10 Device 25 | 1 . . 2 3 1 4 1 . . 4 9 Storage 4 | 1 1 1 . . . 1 . . . . . Processor 4 | . . . . 1 1 . . 1 . . 1 Hackware 2 | . . . . 2 . . . . . . . Protection 1 | . . . . 1 . . . . . . . Artifact . | . . . . . . . . . . . . Weapon 35 | 2 3 8 3 8 2 . . . . 3 6 Energy Gun 10 | 1 . 2 1 1 1 . . . . . 4 Energy Cannon 6 | . 2 2 1 1 . . . . . . . Ballistic Gun 6 | 1 . . 1 3 . . . . . . 1 Ballistic Cannon 2 | . . 2 . . . . . . . . . Launcher 3 | . . . . 2 1 . . . . . . Special Weapon 1 | . 1 . . . . . . . . . . Impact Weapon 2 | . . 2 . . . . . . . . . Slashing Weapon 2 | . . . . 1 . . . . . . 1 Piercing Weapon . | . . . . . . . . . . . . Special Melee Weapon 3 | . . . . . . . . . . 3 . Unidentified Prototypes 3 | . . 1 . . . 1 . . . 1 . Corrupted Parts 1 | . . . . . . . . . . . 1 System Corruption 2 | . . . . . . . . . . . 2 Parts Lost 79 | . . 7 7 23 . . . . 1 4 37 Power 12 | . . 2 1 3 . . . . . . 6 Propulsion 27 | . . 3 3 8 . . . . . 1 12 Utility 20 | . . . 2 3 . . . . 1 2 12 Weapon 20 | . . 2 1 9 . . . . . 1 7 Highest Loss Streak 18 | . . 3 2 10 . . . . 1 2 18 To Critical Strikes 1 | . . 1 . . . . . . . . . Average Backups 9 | 6 8 13 14 11 4 4 4 5 5 4 4 Power 2 | 1 2 2 4 3 1 1 1 1 1 1 . Propulsion 1 | 3 4 2 1 . . . . 1 1 . . Utility 1 | . . 1 2 2 . . 2 3 3 2 2 Weapon 3 | . 2 5 6 5 2 1 . . . . . Tool/Special . | . . . . . . . . . . . . Unused Backups 20 | . 1 5 1 4 . 1 1 1 . 1 5 Power 2 | . . . 1 1 . . . . . . . Propulsion . | . . . . . . . . . . . . Utility 9 | . . 2 . 2 . . 1 1 . 1 2 Weapon 8 | . 1 3 . 1 . 1 . . . . 2 Tool/Special 1 | . . . . . . . . . . . 1 Average Slot Usage (%) 91 | . 100 99 98 89 78 85 87 88 88 94 73 Engine 5 | . 14 10 5 3 . . 4 5 5 5 1 Core 3 | . . . 5 5 7 6 5 5 5 5 3 Treads 9 | . . 13 28 11 . . . . . . . Leg 2 | . . . . 10 . . . . . . 3 Wheel 5 | . 28 19 2 . . . . . . . . Flight 9 | . . . . 3 30 26 29 29 29 26 14 Device 14 | . 14 11 10 5 20 25 23 18 17 25 24 Storage 13 | . 14 21 22 15 . 4 5 5 5 5 2 Processor 4 | . . . . 7 . 6 5 9 11 9 4 Hackware 2 | . . . . 2 7 6 5 5 5 5 5 Energy Gun 4 | . 4 4 7 9 . . . . . . 1 Energy Cannon 3 | . 9 8 7 3 . . . . . . . Ballistic Gun 2 | . 10 . 4 2 7 1 . . . . 1 Ballistic Cannon 1 | . . 7 1 . . . . . . . . Launcher 2 | . . . . 4 4 6 5 5 5 1 . Special Melee Weapon 1 | . . . . . . . . . . 9 6 Peak Build Rating 104 | 7 7 15 18 30 29 49 54 55 55 99 104 Average Rating 33 | 6 7 12 15 22 24 43 50 54 52 86 72 On Entrance 32 | . 7 7 14 18 19 29 47 54 55 52 88 Avg Prop Armor Cover (%) 3 | . . 2 . 7 . . . . . . 3 Naked Turns 3 | . . . . 3 . . . . . . . Heaviest Build 65 | 12 28 56 54 65 14 18 20 20 19 25 55 Greatest Support 114 | 32 32 48 60 60 15 18 24 24 24 28 114 Greatest Overweight (x) 5 | . . 1 2 5 . . . . . . 2 Average Overweight (x) . | . . . . . . . . . . . . Largest Inventory Capacity 15 | 8 15 15 15 15 5 5 5 5 5 5 5 Average Capacity 10 | 7 9 15 15 13 5 5 5 5 5 5 5 Most Carried 15 | 8 8 15 15 15 5 5 5 5 5 5 5 Average Carried 9 | 6 8 13 14 11 3 4 4 4 5 4 4 Final Capacity 15 | 8 15 15 15 5 5 5 5 5 5 5 5 Final Carried 15 | 8 8 14 15 5 5 5 5 5 5 5 3 Class Distribution -------------------- 48% | Mutant 16% | Scout 12% | Sprinter 8% | Tank 7% | Scavenger-Mutant 4% | Gunner Dominant Class ---------------- Mutant | -10/Materials Mutant | -9/Materials Mutant | -9/Storage Tank | -8/Materials Scavenger-Sprinter | -7/Factory Sprinter | -6/Factory Sprinter | -5/Factory Scout | -5/Upper Caves Scout | -5/Upper Caves Scout | -4/Factory Sprinter | -4/Extension Resources | -11 -10 -9 -9 -8 -7 -6 -5 -5 -5 -4 -4 ----------- Run | Yrd Mat Mat Sto Mat Fac Fac Fac Upp Upp Fac Ext Matter Collected 2936 | 314 26 491 286 845 . . . 240 . . 734 Remotely . | . . . . . . . . . . . . Salvage Created 3652 | 344 136 941 597 1335 . . . . . . 299 Parts 241 | 31 16 64 36 85 . . . . . . 9 Haulers Intercepted 1 | . . 1 . . . . . . . . . Recyclers Shooed 2 | . . . . . . . . . . . 2 Parts Field Recycled . | . . . . . . . . . . . . Retrieved Matter . | . . . . . . . . . . . . Parts Self-Destructed 4 | . . . . . . . . 4 . . . Prevented 4 | . . . . . . . . 4 . . . Parts Restored . | . . . . . . . . . . . . Kills | -11 -10 -9 -9 -8 -7 -6 -5 -5 -5 -4 -4 ------- Run | Yrd Mat Mat Sto Mat Fac Fac Fac Upp Upp Fac Ext Combat Hostiles Destroyed 78 | . 4 28 15 29 . . . . . . 2 Melee 1 | . . . . 1 . . . . . . . Guns 29 | . 3 5 10 9 . . . . . . 2 Cannons 32 | . 1 21 5 5 . . . . . . . AOE 14 | . . . . 14 . . . . . . . Classes Destroyed 12 | 3 4 2 1 2 . . . . . . . Worker 5 | 3 . . . 2 . . . . . . . Builder 4 | . . . . 4 . . . . . . . Tunneler 11 | 9 . . . 2 . . . . . . . Hauler 1 | . . 1 . . . . . . . . . Recycler 5 | 1 . 2 . 1 . . . . . . 1 Operator 2 | . 1 . . 1 . . . . . . . Watcher 10 | . 2 3 2 3 . . . . . . . Swarmer 32 | . 3 15 3 11 . . . . . . . Grunt 27 | . 1 11 6 8 . . . . . . 1 Brawler 1 | . . . 1 . . . . . . . . Sentry 16 | . . 2 5 8 . . . . . . 1 Hunter 2 | . . . . 2 . . . . . . . Best Kill Streak 8 | 3 3 7 3 8 . . . . . . 1 Combat Bots Only 6 | . 3 6 3 5 . . . . . . 1 Max Kills in Single Turn 3 | 1 1 2 2 3 . . . . . . 1 Gunslinging . | . . . . . . . . . . . . Exploded 2 | . . . . 2 . . . . . . . Melee 1 | . . . . 1 . . . . . . . Uniques/NPCs Destroyed . | . . . . . . . . . . . . Combat | -11 -10 -9 -9 -8 -7 -6 -5 -5 -5 -4 -4 -------- Run | Yrd Mat Mat Sto Mat Fac Fac Fac Upp Upp Fac Ext Hostile Shots Fired 979 | . 23 158 137 287 9 34 . 22 4 42 263 Missed 353 | . 8 35 39 109 6 24 . 18 1 14 99 Hits 626 | . 15 123 98 178 3 10 . 4 3 28 164 Melee 4 | . . . 4 . . . . . . . . Projectile 622 | . 15 123 94 178 3 10 . 4 3 28 164 Critical Strikes 18 | . . 1 1 8 . . . . . 3 5 Actively Blocked 8 | . . . . . . . . . . 3 5 Part Disruptions 1 | . . . . . . . . . . . 1 Damage Taken 9418 | . 121 1051 1212 2587 27 116 . 36 54 568 3646 Core 2132 | . 14 185 205 542 . 5 . . 16 98 1067 Absorbed by Shields 135 | . . . 63 . . . . . . 26 46 Regen/Repaired (Parts) 164 | . . . 25 49 . 42 . . . . 48 Core Remaining (%) 70 | 100 94 . 2 1 100 99 . . 98 . . Volleys Fired 269 | 44 30 64 50 65 . . . . . . 16 Largest 3 | 2 2 2 2 3 . . . . . . 3 Hottest 177 | 70 160 116 145 166 . . . . . . 177 Shots Fired 547 | 88 52 124 86 168 . . . . . . 29 Gun 311 | 88 34 22 52 86 . . . . . . 29 Cannon 199 | . 17 101 30 51 . . . . . . . Launcher 30 | . . . . 30 . . . . . . . Special 7 | . 1 1 4 1 . . . . . . . Kinetic 196 | 44 27 54 21 35 . . . . . . 15 Thermal 249 | 44 25 46 52 68 . . . . . . 14 Explosive 13 | . . . . 13 . . . . . . . Electromagnetic 89 | . . 24 13 52 . . . . . . . Robot Hit Streak 14 | 9 5 11 14 9 . . . . . . 11 Robot Miss Streak 7 | 4 3 6 5 7 . . . . . . 2 Penetration Max 1 | . . . . . . . . . . . 1 Secondary Targets 1 | . 1 . . . . . . . . . . Max Gunslinging Chain 1 | . 1 . . . . . . . . . . Shots Hit Robots 295 | 48 14 60 56 89 . . . . . . 28 Core Hits 153 | 17 9 35 21 62 . . . . . . 9 Critical Kills 1 | . 1 . . . . . . . . . . Critical Parts Destroyed 1 | . . 1 . . . . . . . . . Critical Strikes 17 | 4 1 3 4 5 . . . . . . . Burn 10 | 4 . . 3 3 . . . . . . . Destroy 1 | . 1 . . . . . . . . . . Blast 2 | . . 1 1 . . . . . . . . Corrupt 2 | . . 1 . 1 . . . . . . . Smash 1 | . . 1 . . . . . . . . . Sever 1 | . . . . 1 . . . . . . . Melee Attacks 19 | . . 4 . 7 . . . . . . 8 Impact 4 | . . 4 . . . . . . . . . Slashing 14 | . . . . 7 . . . . . . 7 Piercing . | . . . . . . . . . . . . Sneak Attacks 4 | . . . . 1 . . . . . . 3 Combat Hostiles . | . . . . . . . . . . . . Follow-up Attacks . | . . . . . . . . . . . . Damage Inflicted 6823 | 506 161 1351 1013 2875 . . . . . . 917 Guns 2860 | 506 109 190 601 897 . . . . . . 557 Cannons 1897 | . 52 1048 388 409 . . . . . . . Explosions 1379 | . . . . 1379 . . . . . . . Melee 655 | . . 110 . 190 . . . . . . 355 Ramming 8 | . . 3 . . . . . . . . 5 Kinetic 1587 | 171 85 501 247 218 . . . . . . 365 Thermal 2348 | 335 76 435 607 703 . . . . . . 192 Explosive 751 | . . . . 751 . . . . . . . Electromagnetic 1474 | . . 302 159 1013 . . . . . . . Impact 110 | . . 110 . . . . . . . . . Slashing 545 | . . . . 190 . . . . . . 355 Piercing . | . . . . . . . . . . . . Highest Corruption 6 | . 3 . 1 . . . . . . 2 6 Average Corruption 2 | . 2 . 1 . . . . . . 1 3 Corruption Purged . | . . . . . . . . . . . . Corruption Blocked . | . . . . . . . . . . . . Effects 20 | . 2 . 1 . . . . . . 3 14 Message Errors 6 | . . . 1 . . . . . . 2 3 Matter Fused 6 | . 1 . . . . . . . . 1 4 Heat Flow Errors 2 | . . . . . . . . . . . 2 Energy Discharges 3 | . 1 . . . . . . . . . 2 Data Loss (minor) 1 | . . . . . . . . . . . 1 Data Loss (major) 1 | . . . . . . . . . . . 1 Weapon Failures 1 | . . . . . . . . . . . 1 Overload Shots . | . . . . . . . . . . . . Overflow Damage 259 | . . 90 . 8 . . . . . . 161 Projectiles 3 | . . . . 3 . . . . . . . Explosions 5 | . . . . 5 . . . . . . . Melee 251 | . . 90 . . . . . . . . 161 Knockbacks 4 | . . 3 . 1 . . . . . . . Impact 1 | . . 1 . . . . . . . . . Kinetic 3 | . . 2 . 1 . . . . . . . Secondary . | . . . . . . . . . . . . Self-Inflicted Damage 57 | . . . . 55 . . . . . . 2 Shots 5 | . . . . 5 . . . . . . . Rammed 2 | . . 1 . . . . . . . . 1 Targets Rammed 3 | . . 1 . . . . . . . . 2 Kicked 1 | . . . . . . . . . . . 1 Crushed . | . . . . . . . . . . . . Highest Temperature 453 | 80 220 365 168 432 . 8 3 8 7 123 453 Average Temperature 78 | 31 76 73 50 151 . 5 2 2 7 35 114 Received Heat Transfer 1818 | . 6 138 444 468 12 51 . . 9 63 627 Effects 9 | . . . . 8 . . . . . . 1 Shutdowns 3 | . . . . 2 . . . . . . 1 Energy Bleed 1 | . . . . 1 . . . . . . . Interference 2 | . . . . 2 . . . . . . . Matter Decay 3 | . . . . 3 . . . . . . . Siege Activations . | . . . . . . . . . . . . Martial Activations . | . . . . . . . . . . . . Shielding Activations . | . . . . . . . . . . . . Robots Disrupted . | . . . . . . . . . . . . Combat Hostiles . | . . . . . . . . . . . . Robots Corrupted 3 | . . 2 1 . . . . . . . . Combat Hostiles 2 | . . 2 . . . . . . . . . Parts Fried 9 | . . 3 2 4 . . . . . . . Impact Corruptions 3 | . . 3 . . . . . . . . . Robots Melted . | . . . . . . . . . . . . Combat Hostiles . | . . . . . . . . . . . . Parts Melted 9 | 4 . . 1 2 . . . . . . 2 Heat Transferred 6044 | 1295 185 962 1530 1739 . . . . . . 333 Parts Sabotaged . | . . . . . . . . . . . . Parts Stolen . | . . . . . . . . . . . . Parts Stripped . | . . . . . . . . . . . . Power Chain Reactions 3 | . . . . 3 . . . . . . . Alert | -11 -10 -9 -9 -8 -7 -6 -5 -5 -5 -4 -4 ------- Run | Yrd Mat Mat Sto Mat Fac Fac Fac Upp Upp Fac Ext Maximum Alert Level 2 | . . 1 1 2 1 . . . . . . Low Security (%) 67 | 100 100 44 68 33 31 100 100 . . 100 100 Level 1 23 | . . 55 31 31 68 . . . . . . Level 2 8 | . . . . 35 . . . . . . . Level 3 . | . . . . . . . . . . . . Level 4 . | . . . . . . . . . . . . Level 5 . | . . . . . . . . . . . . High Security . | . . . . . . . . . . . . Max Security . | . . . . . . . . . . . . Peak Influence 558 | 10 60 392 271 558 219 97 44 . . 45 133 Initial 204 | . . . 152 44 204 97 44 . . . . Average 146 | 1 9 239 170 269 204 39 15 . . 8 35 Influence Increases 3610 | 65 141 843 487 1152 15 172 . 120 . 180 435 Destroy 0b10 Robot/C 1720 | . 80 560 300 580 . . . . . . 200 Destroy 0b10 Robot/NC 195 | 65 15 30 10 65 . . . . . . 10 Destroy Leader 462 | . 24 108 104 176 . . . . . . 50 Allied During Kill 38 | . . . . . . . . . . . 38 Successful Hack 103 | . 7 7 9 30 . 22 . . . . 28 Disable Machine 180 | . 15 30 30 90 . . . . . . 15 Destroy Structure 72 | . . 3 4 61 . . . . . . 4 Partial Spotted 150 | . . . . 15 15 30 . . . 60 30 Lose Combat Pursuer 690 | . . 105 30 135 . 120 . 120 . 120 60 Influence Decreases 3610 | 65 141 482 743 807 266 279 92 120 . 180 435 Entered New Map 666 | . . . 209 61 246 102 48 . . . . Time Decay 2264 | 65 81 412 464 526 20 177 44 120 . 150 205 Lost Part 520 | . . 70 70 220 . . . . . 30 130 Lost Ally 100 | . . . . . . . . . . . 100 Purge Threat 60 | . 60 . . . . . . . . . . Squads Dispatched 29 | . 1 4 4 11 2 1 1 . . 1 4 Investigation 11 | . . 2 2 2 1 . 1 . . . 3 Extermination 2 | . . . . . . 1 . . . 1 . Reinforcement 12 | . 1 2 2 5 1 . . . . . 1 Assault 1 | . . . . 1 . . . . . . . Garrison 3 | . . . . 3 . . . . . . . Intercept . | . . . . . . . . . . . . Searches Triggered . | . . . . . . . . . . . . Construction Impeded 1 | . . . . 1 . . . . . . . Haulers Reinforced . | . . . . . . . . . . . . Active Scanning Responses . | . . . . . . . . . . . . Cargo Convoy Interrupts . | . . . . . . . . . . . . Stealth | -11 -10 -9 -9 -8 -7 -6 -5 -5 -5 -4 -4 --------- Run | Yrd Mat Mat Sto Mat Fac Fac Fac Upp Upp Fac Ext Distress Signals 4 | . . . 1 1 . . . . . 1 1 Communications Jammed 9 | . . . . . . . . . . . 9 Distress Signals 9 | . . . . . . . . . . . 9 Times Spotted 216 | . 10 43 22 61 3 13 . 14 4 15 31 Peak Tracking Total 20 | . 4 4 7 14 4 7 . 8 4 7 20 Tactical Retreats 34 | . . 5 2 8 . 4 . 8 . 4 3 Traps | -11 -10 -9 -9 -8 -7 -6 -5 -5 -5 -4 -4 ------- Run | Yrd Mat Mat Sto Mat Fac Fac Fac Upp Upp Fac Ext Traps Triggered 12 | . 2 . 1 2 . . 1 . . 1 5 Indirectly . | . . . . . . . . . . . . Trap Hack Attempts . | . . . . . . . . . . . . Triggered . | . . . . . . . . . . . . Disarmed . | . . . . . . . . . . . . Reprogrammed . | . . . . . . . . . . . . Reused . | . . . . . . . . . . . . Traps Extracted . | . . . . . . . . . . . . Installed . | . . . . . . . . . . . . Triggered . | . . . . . . . . . . . . Machines | -11 -10 -9 -9 -8 -7 -6 -5 -5 -5 -4 -4 ---------- Run | Yrd Mat Mat Sto Mat Fac Fac Fac Upp Upp Fac Ext Machines Disabled 12 | . 1 2 2 6 . . . . . . 1 Max in Single Turn 2 | . 1 1 1 2 . . . . . . 1 Garrison Access 1 | . . . . 1 . . . . . . . Machines Repaired . | . . . . . . . . . . . . Machines Dismantled . | . . . . . . . . . . . . Machines Sabotaged . | . . . . . . . . . . . . Overloaded Fab Kills . | . . . . . . . . . . . . Hacking | -11 -10 -9 -9 -8 -7 -6 -5 -5 -5 -4 -4 --------- Run | Yrd Mat Mat Sto Mat Fac Fac Fac Upp Upp Fac Ext Machines Accessed 44 | . 3 5 7 7 2 6 2 1 . 2 9 Terminals 28 | . 3 4 4 3 1 2 1 . . 2 8 Fabricators 1 | . . . . . . . 1 . . . . Repair Stations 5 | . . . 1 1 . 2 . . . . 1 Recycling Units 5 | . . 1 2 1 . 1 . . . . . Scanalyzers 2 | . . . . 1 . 1 . . . . . Garrison Access 2 | . . . . 1 1 . . . . . . Total Hacks 102 | . 6 11 20 14 6 11 5 1 . 3 25 Successful 48 | . 3 2 9 10 . 6 1 1 . . 16 Failed 54 | . 3 9 11 4 6 5 4 . . 3 9 Catastrophic 4 | . . 1 . . 2 . 1 . . . . Database Lockouts . | . . . . . . . . . . . . Manual 8 | . . . . 4 1 1 . . . 1 1 Terminals 69 | . 6 9 10 7 3 5 3 . . 3 23 Fabricators 2 | . . . . . . . 2 . . . . Repair Stations 10 | . . . 3 2 . 3 . . . . 2 Recycling Units 11 | . . 2 7 1 . 1 . . . . . Scanalyzers 5 | . . . . 3 . 2 . . . . . Garrison Access 4 | . . . . 1 3 . . . . . . Terminal Hacks 30 | . 3 2 5 2 . 3 . 1 . . 14 Record 10 | . . . . 1 . 3 . . . . 6 Prototype ID Bank 1 | . . . 1 . . . . . . . . Open Door 6 | . . . 1 . . . . 1 . . 4 Level Access Points 2 | . . . 1 . . . . . . . 1 Alert Level 2 | . . . 1 1 . . . . . . . Unreport Threat 1 | . 1 . . . . . . . . . . Locate Traps 2 | . 1 . . . . . . . . . 1 Dispatch Records 1 | . . 1 . . . . . . . . . Registered Components 2 | . 1 1 . . . . . . . . . Zone Layout 3 | . . . 1 . . . . . . . 2 Fabricator Hacks 1 | . . . . . . . 1 . . . . Network Status 1 | . . . . . . . 1 . . . . Repair Station Hacks 8 | . . . 2 2 . 2 . . . . 2 Scan Component 4 | . . . 1 1 . 1 . . . . 1 Repair 4 | . . . 1 1 . 1 . . . . 1 Recycling Unit Hacks 2 | . . . 2 . . . . . . . . Retrieve Components 2 | . . . 2 . . . . . . . . Scanalyzer 3 | . . . . 3 . . . . . . . Insert Component 1 | . . . . 1 . . . . . . . Analyze 1 | . . . . 1 . . . . . . . Retrieve Study 1 | . . . . 1 . . . . . . . Garrison Access Hacks 1 | . . . . 1 . . . . . . . Seal Access 1 | . . . . 1 . . . . . . . Unauthorized Hacks 3 | . . . . 2 . 1 . . . . . Terminals 1 | . . . . 1 . . . . . . . Assimilate 1 | . . . . 1 . . . . . . . Fabricators . | . . . . . . . . . . . . Repair Stations . | . . . . . . . . . . . . Recycling Units 2 | . . . . 1 . 1 . . . . . Reject 2 | . . . . 1 . 1 . . . . . Scanalyzers . | . . . . . . . . . . . . Garrison Access . | . . . . . . . . . . . . Data Cores Recovered . | . . . . . . . . . . . . Used . | . . . . . . . . . . . . Hacking Detections 26 | . 2 3 4 3 2 4 2 . . 1 5 Full Trace Events 11 | . . 2 2 2 1 . 1 . . . 3 Feedback Events . | . . . . . . . . . . . . Feedback Blocked . | . . . . . . . . . . . . Robot Schematics Acquired . | . . . . . . . . . . . . Robots Built . | . . . . . . . . . . . . Authchips . | . . . . . . . . . . . . Time . | . . . . . . . . . . . . Total Robot Build Rating . | . . . . . . . . . . . . Part Schematics Acquired 1 | . . . . 1 . . . . . . . Parts Built . | . . . . . . . . . . . . Authchips . | . . . . . . . . . . . . Time . | . . . . . . . . . . . . Total Part Build Rating . | . . . . . . . . . . . . Part Studies Acquired 1 | . . . . 1 . . . . . . . Parts Repaired 4 | . . . 1 1 . 1 . . . . 1 Time 136 | . . . 38 19 . 19 . . . . 60 Parts Recycled . | . . . . . . . . . . . . Recycled Matter . | . . . . . . . . . . . . Retrieved Matter . | . . . . . . . . . . . . Retrieved Components 12 | . . . 12 . . . . . . . . Parts Scanalyzed 1 | . . . . 1 . . . . . . . Part Schematics Acquired 1 | . . . . 1 . . . . . . . Parts Damaged . | . . . . . . . . . . . . Bothacking | -11 -10 -9 -9 -8 -7 -6 -5 -5 -5 -4 -4 ------------ Run | Yrd Mat Mat Sto Mat Fac Fac Fac Upp Upp Fac Ext Used RIF Installer . | . . . . . . . . . . . . Robots Hacked 1 | . . . . . . . . . . . 1 Non-combat 1 | . . . . . . . . . . . 1 Combat . | . . . . . . . . . . . . Robot Hacks Applied 1 | . . . . . . . . . . . 1 parse_system 1 | . . . . . . . . . . . 1 Relay Couplers Released . | . . . . . . . . . . . . Fabnet Peak Effective % . | . . . . . . . . . . . . Robots Rewired . | . . . . . . . . . . . . Allies Hacked . | . . . . . . . . . . . . Hacks Repelled . | . . . . . . . . . . . . Allies | -11 -10 -9 -9 -8 -7 -6 -5 -5 -5 -4 -4 -------- Run | Yrd Mat Mat Sto Mat Fac Fac Fac Upp Upp Fac Ext Total Allies 5 | . . . . . . . . . . . 5 Largest Group 3 | . . . . . . . . . . . 3 Highest-Rated Group 130 | . . . . . . . . . . . 130 Highest-Rated Ally 51 | . . . . . . . . . . . 51 Total Orders . | . . . . . . . . . . . . Ally Attacks 38 | . . . . . . . . . . . 38 Total Damage 850 | . . . . . . . . . . . 850 Kills 9 | . . . . . . . . . . . 9 Allies Corrupted . | . . . . . . . . . . . . Allies Melted 1 | . . . . . . . . . . . 1 Intel | -11 -10 -9 -9 -8 -7 -6 -5 -5 -5 -4 -4 ------- Run | Yrd Mat Mat Sto Mat Fac Fac Fac Upp Upp Fac Ext Active Infowar (turns) 3858 | 338 320 508 . 210 58 390 151 696 5 536 646 Sensors 2196 | . . . . . . 381 151 696 5 536 427 IFF 342 | . . . . . . . . . . . 342 Terrain 1330 | . . . . 210 58 70 149 696 5 141 1 Seismic 1166 | 338 320 508 . . . . . . . . . Jamming 89 | . . . . . . . . . . . 89 Robot Analysis Total . | . . . . . . . . . . . . Derelict Logs Recovered 4 | . . . . . . . . 3 1 . . Drone Launches . | . . . . . . . . . . . . Drone Recoveries . | . . . . . . . . . . . . Exploration | -11 -10 -9 -9 -8 -7 -6 -5 -5 -5 -4 -4 ------------- Run | Yrd Mat Mat Sto Mat Fac Fac Fac Upp Upp Fac Ext Turns Passed 7728 | 460 320 1349 1170 1634 58 390 151 696 5 632 863 Spaces Moved 8045 | 320 224 589 593 974 166 719 349 1786 18 1110 1197 Core 73 | 3 . . . 11 . . . . . . 59 Treads 1003 | . . 287 498 204 . . . . . . 14 Legs 381 | . . . . 232 . . . . . . 149 Wheels 938 | 317 224 302 95 . . . . . . . . Hover 48 | . . . . 48 . . . . . . . Flight 5602 | . . . . 479 166 719 349 1786 18 1110 975 Fastest Speed 23 | 50 100 100 115 32 29 26 24 24 24 23 23 Average Speed 63 | 99 100 173 154 116 29 26 24 24 24 23 42 Slowest Speed 540 | 100 100 240 320 540 29 29 24 24 24 25 240 Overloaded Moves . | . . . . . . . . . . . . Propulsion Burnouts . | . . . . . . . . . . . . Robots Hopped 31 | . . . . 5 . 1 . 12 1 5 7 Potential Cave-ins . | . . . . . . . . . . . . Cave-ins Triggered . | . . . . . . . . . . . . Exploration Rate (%) 34 | 11 40 32 60 82 5 18 5 90 5 16 52 Regions Visited 11 Branch Regions 4 Pre-discovered Areas . | . . . . . . . . . . . . Known Exits Taken 2 | . . . 1 . . . . 1 . . . Unknown Exits Taken 9 | 1 1 1 . 1 1 1 1 . 1 1 . Scrap Searched 3 | . . . . . . . . 3 . . . Spaces Dug 3 | . . 1 1 1 . . . . . . . Terrain Destroyed 69 | . . 3 2 61 . . . . . . 3 Melee . | . . . . . . . . . . . . Projectile 10 | . . 3 2 2 . . . . . . 3 AOE 59 | . . . . 59 . . . . . . . Terrain Rammed . | . . . . . . . . . . . . Walls Destroyed . | . . . . . . . . . . . . Machines Disabled . | . . . . . . . . . . . . Actions | -11 -10 -9 -9 -8 -7 -6 -5 -5 -5 -4 -4 --------- Run | Yrd Mat Mat Sto Mat Fac Fac Fac Upp Upp Fac Ext Total 10028 | 378 270 780 750 1309 174 916 416 2040 16 1470 1509 Wait 1321 | . 10 68 70 195 1 174 41 264 . 329 169 Move 7974 | 319 223 588 592 964 165 716 348 1762 15 1099 1183 Hop 29 | . . . . 4 . 1 . 11 1 5 7 Pick Up 86 | 8 1 20 11 16 1 5 4 1 . 7 12 Fast Attach 49 | 7 . 1 2 14 2 4 . . . 5 14 Attach 51 | . . 9 6 17 3 1 2 . . 2 11 Detach 3 | . . 1 . 1 1 . . . . . . Swap 75 | . 4 16 14 18 1 5 2 1 . 5 9 Drop 53 | . 2 8 5 8 . 10 4 1 . 6 9 Fire 269 | 44 30 64 50 65 . . . . . . 16 Melee 19 | . . 4 . 7 . . . . . . 8 Ram 1 | . . . . . . . . . . . 1 Kick 1 | . . . . . . . . . . . 1 Crush 1 | . . 1 . . . . . . . . . Escape Stasis 96 | . . . . . . . 15 . . 12 69 Rewire . | . . . . . . . . . . . . Trap . | . . . . . . . . . . . . Miscellaneous . | . . . . . . . . . . . . Route ------- -11/Scrapyard -10/Materials (discovered 2 exits: *Mat / [*Min]) -9/Materials -9/Storage -8/Materials -7/Factory -6/Factory -5/Factory -5/Upper Caves -5/Upper Caves -4/Factory (discovered 2 exits: Upp / *Ext) -4/Extension (discovered 2 exits: Res x2) History --------- Turn | Location | Event 16 | -11/Scrapyard | Discovered new exit (range 15) 461 | -11/Scrapyard | Entered Materials 462 | -10/Materials | Build established: Mutant 607 | -10/Materials | Discovered new exit (range 13) 755 | -10/Materials | Discovered new exit (range 10) 781 | -10/Materials | Entered another Materials area 781 | -9/Materials | Evolved 2 slots: Propulsion x1, Utility x1 781 | -9/Materials | Discovered new exit (range 7) 1312 | -9/Materials | Lost 3 parts (1p2n) 2130 | -9/Materials | Entered Storage 2167 | -9/Storage | Core integrity fell below 50% 2688 | -9/Storage | Core integrity fell below 20% 2921 | -9/Storage | Repaired Reaction Control System 2956 | -9/Storage | Identified exit to Materials 3300 | -9/Storage | Entered Materials 3300 | -8/Materials | Evolved 2 slots: Utility x1, Weapon x1 3743 | -8/Materials | Garrison activated, responded to threat 3807 | -8/Materials | Build established: Tank 4094 | -8/Materials | Repaired Carbon-fiber Leg? 4361 | -8/Materials | Lost 5 parts (1n1u3w) 4601 | -8/Materials | Core integrity fell below 50% 4690 | -8/Materials | Released all parts (3) 4691 | -8/Materials | Core integrity fell below 20% 4758 | -8/Materials | Lost 10 parts (2p5n3w) 4900 | -8/Materials | First assault squad dispatched 4927 | -8/Materials | Discovered new exit (range 15) 4934 | -8/Materials | Entered Factory 4934 | -7/Factory | Evolved 2 slots: Propulsion x1, Utility x1 4988 | -7/Factory | Discovered new exit (range 5) 4992 | -7/Factory | Entered another Factory area 4992 | -6/Factory | Evolved 2 slots: Utility x2 5282 | -6/Factory | Repaired Lgt. Nuclear Core+ 5381 | -6/Factory | Discovered new exit (range 5) 5382 | -6/Factory | Entered another Factory area 5382 | -5/Factory | Evolved 2 slots: Power x1, Propulsion x1 5396 | -5/Factory | Discovered new exit (range 3) 5412 | -5/Factory | Build established: Sprinter 5533 | -5/Factory | Entered Upper Caves 5701 | -5/Upper Caves | Identified exit to Upper Caves 5704 | -5/Upper Caves | Learned location of 1 exit from Factory 5734 | -5/Upper Caves | Ambushed by wild Derelicts 5753 | -5/Upper Caves | Spotted B-75 Beast 5831 | -5/Upper Caves | Attracted the attention of an 0b10 outpost 5974 | -5/Upper Caves | Build established: Scout 6229 | -5/Upper Caves | Entered another Upper Caves area 6229 | -5/Upper Caves | Discovered new exit (range 11) 6234 | -5/Upper Caves | Entered Factory 6234 | -4/Factory | Evolved 2 slots: Utility x2 6235 | -4/Factory | Identified exit to Upper Caves 6852 | -4/Factory | Discovered new exit (range 12) 6866 | -4/Factory | Entered Extension 6944 | -4/Extension | Spotted B-86 Titan 7032 | -4/Extension | Repaired Imp. VTOL Module? 7116 | -4/Extension | Rescued a captive Derelict 7121 | -4/Extension | Build established: Sprinter 7373 | -4/Extension | Rescued a captive Derelict 7395 | -4/Extension | Identified exit to Research 7398 | -4/Extension | Lost 14 parts (2p6n5u1w) 7399 | -4/Extension | Rescued a captive Derelict 7400 | -4/Extension | Rescued a captive Derelict 7522 | -4/Extension | Rescued a captive Derelict 7641 | -4/Extension | Disrupted transfer network 7699 | -4/Extension | Spotted B-86 Titan 7719 | -4/Extension | Core integrity fell below 50% 7725 | -4/Extension | Core integrity fell below 20% 7729 | -4/Extension | Destroyed by S-27 Virus with Autogun Last Messages --------------- 07718_ Penetrated by Slug. 07718_ Slug penetrates Wall. 07719_ KE Penetrator destroyed. 07719_ Adv. Heat Sink destroyed. 07720_ Adv. Sensor Array destroyed. 07721_ Penetrated by Slug. 07721_ Flexi-carbon Leg destroyed. 07722_ Adv. Transmission Jammer destroyed. 07722_ IFF Parser destroyed. 07723_ B-86 Titan suffers critical hit (Burn). 07724_ Flexi-carbon Leg destroyed. 07724_ Antimatter Reactor destroyed. 07724_ Penetrated by Slug. 07725_ Field Laser destroyed. 07725_ Slammed into G-67 Veteran. 07726_ G-73 Enforcer suffers critical hit (Burn). 07726_ Acquired 1 matter. 07726_ Slug penetrates Wall. [Achievement: Hunted] Map ----- +----------------------------------------------------+ | #????????# ?????????????????????????????????????? | | "#????????# ?????????????????????????????????????? | | "#????????# ?????????????????????????????????????? | | "#????????# ?????????????????????????????????????? | | "#????????# ?????????????????????????????????????? | | "#????????# ?????????????????????????????????????? | | #????????# ?????????????????????????????????????? | | %#????????# ?????????????????????????????????????? | | #????????# ?????????????????????????????????????? | | !###??????# ?????????????????????????????????????? | | *# #??????# ?????????????????????????????????????? | | *##???????# ?????????????????????????????????????? | | [#????????# ?????????????????????????????????????? | | =#????????# #????????????????????????????????????? | | %#????????# #????????????????????????????????????? | | !#????????# #????????????????????????????????????? | | !#?###????# #????????????????????????????????????? | | %#?# #????# #????????????????????????????????????? | | =#?#"####?# #????????????????????????????????????? | | ["## ## ### ###??????????????????????????????????? | | ! " ""#??????????????????????????????????? | | " #??????????????????????????????????? | | ##?????????????????????????????????? | | " ###??????????????????????????????? | | % "#;;#################??????????????? | | % % %s gs @ ????????? | | % % s g%% ????????? | | ggs h ????????? | | ! =% s h A ?????????? | | % ! A % g ?????????? | | = #########################??????????? | | "??????????????????????????????????? | | ##?????????????????????????????????? | | "??????????????????????????????????? | | ##?????????????????????????????????? | | ###T#"""#######??????????????????????????????????? | | ??##??